[Event "*** SCC Grand Prix: Titled Tuesday Blitz"]
[Site "Chess.com"]
[Date "2020.10.13"]
[Round "8"]
[White "MarceloPlaya"]
[Black "RamyresCoelho"]
[Result "0-1"]
[WhiteElo "2258"]
[BlackElo "2085"]
[TimeControl "180+1"]
[EndTime "11:33:06 PDT"]
[Termination "RamyresCoelho won by checkmate"]

1. e4 {[%clk 0:02:54]} 1... c5 {[%clk 0:02:58.8]} 2. Nf3 {[%clk 0:02:51.5]} 2...
d6 {[%clk 0:02:58.7]} 3. d4 {[%clk 0:02:41.6]} 3... cxd4 {[%clk 0:02:59.6]} 4.
Nxd4 {[%clk 0:02:40.1]} 4... Nf6 {[%clk 0:02:59.9]} 5. Nc3 {[%clk 0:02:38.6]}
5... a6 {[%clk 0:02:59.6]} 6. Bg5 {[%clk 0:02:37.7]} 6... e6 {[%clk 0:02:58.9]}
7. f4 {[%clk 0:02:37.6]} 7... Qb6 {[%clk 0:02:56.6]} 8. Nb3 {[%clk 0:02:36.6]}
8... Be7 {[%clk 0:02:56]} 9. Qd2 {[%clk 0:02:36.2]} 9... O-O {[%clk 0:02:56]}
10. O-O-O {[%clk 0:02:35.9]} 10... Nc6 {[%clk 0:02:47.1]} 11. g4 {[%clk
0:02:32.2]} 11... Rd8 {[%clk 0:02:22.1]} 12. Bxf6 {[%clk 0:02:29.6]} 12... Bxf6
{[%clk 0:02:23]} 13. g5 {[%clk 0:02:29.4]} 13... Be7 {[%clk 0:02:17]} 14. h4
{[%clk 0:02:27.7]} 14... Bd7 {[%clk 0:02:14.1]} 15. h5 {[%clk 0:02:26.6]} 15...
Qc7 {[%clk 0:02:12.2]} 16. g6 {[%clk 0:02:25]} 16... h6 {[%clk 0:02:04.3]} 17.
gxf7+ {[%clk 0:02:24]} 17... Kxf7 {[%clk 0:02:05.2]} 18. f5 {[%clk 0:02:22.6]}
18... Ne5 {[%clk 0:01:58.8]} 19. Kb1 {[%clk 0:02:20.2]} 19... b5 {[%clk
0:01:58.2]} 20. Bh3 {[%clk 0:02:13.2]} 20... exf5 {[%clk 0:01:37.9]} 21. Nd5
{[%clk 0:02:08.8]} 21... Qc6 {[%clk 0:01:23.8]} 22. Nd4 {[%clk 0:01:59.3]} 22...
Qb7 {[%clk 0:01:14.1]} 23. Nxe7 {[%clk 0:01:45.3]} 23... Kxe7 {[%clk 0:01:13.3]}
24. Bxf5 {[%clk 0:01:44.4]} 24... Rac8 {[%clk 0:01:04.5]} 25. Rhg1 {[%clk
0:01:35.8]} 25... Kf8 {[%clk 0:00:59.1]} 26. Rxg7 {[%clk 0:01:18.9]} 26... Kxg7
{[%clk 0:00:54.1]} 27. Rg1+ {[%clk 0:01:17.3]} 27... Kf7 {[%clk 0:00:49.6]} 28.
Qxh6 {[%clk 0:01:09]} 28... Rg8 {[%clk 0:00:42.3]} 29. Qh7+ {[%clk 0:00:41.5]}
29... Kf6 {[%clk 0:00:41.5]} 30. Rxg8 {[%clk 0:00:32]} 30... Rxg8 {[%clk
0:00:42.4]} 31. Qxg8 {[%clk 0:00:31.4]} 31... Bxf5 {[%clk 0:00:39.8]} 32. Qh8+
{[%clk 0:00:25.2]} 32... Kg5 {[%clk 0:00:37.9]} 33. Qd8+ {[%clk 0:00:20.5]}
33... Kf4 {[%clk 0:00:34.3]} 34. exf5 {[%clk 0:00:14.4]} 34... Qh1# {[%clk
0:00:34.2]} 0-1

[Event "*** SCC Grand Prix: Titled Tuesday Blitz"]
[Site "Chess.com"]
[Date "2020.10.13"]
[Round "8"]
[White "Ural_bogatyr"]
[Black "Larina_Marija"]
[Result "0-1"]
[WhiteElo "2395"]
[BlackElo "2285"]
[TimeControl "180+1"]
[EndTime "11:33:08 PDT"]
[Termination "Larina_Marija won on time"]

1. e4 {[%clk 0:03:00.9]} 1... c6 {[%clk 0:02:59.1]} 2. d4 {[%clk 0:03:00.7]}
2... d5 {[%clk 0:02:59.3]} 3. e5 {[%clk 0:03:01.3]} 3... c5 {[%clk 0:02:58.8]}
4. dxc5 {[%clk 0:03:01]} 4... Nc6 {[%clk 0:02:58.5]} 5. a3 {[%clk 0:03:01.6]}
5... Nxe5 {[%clk 0:02:54.7]} 6. Bb5+ {[%clk 0:03:01.9]} 6... Nc6 {[%clk
0:02:44.9]} 7. b4 {[%clk 0:03:01.8]} 7... Nf6 {[%clk 0:02:30.9]} 8. Bb2 {[%clk
0:03:00.9]} 8... e6 {[%clk 0:02:29.2]} 9. Nf3 {[%clk 0:02:58.9]} 9... Be7 {[%clk
0:02:29.2]} 10. O-O {[%clk 0:02:57.9]} 10... O-O {[%clk 0:02:28.9]} 11. c4
{[%clk 0:02:58.4]} 11... dxc4 {[%clk 0:02:26.7]} 12. Nbd2 {[%clk 0:02:58.2]}
12... a5 {[%clk 0:02:24.6]} 13. Bc3 {[%clk 0:02:46.5]} 13... Nd5 {[%clk
0:02:15.4]} 14. Rc1 {[%clk 0:02:05.9]} 14... Nxc3 {[%clk 0:02:14.4]} 15. Rxc3
{[%clk 0:02:04.6]} 15... axb4 {[%clk 0:02:14.9]} 16. axb4 {[%clk 0:02:02.8]}
16... Nxb4 {[%clk 0:02:14.9]} 17. Rxc4 {[%clk 0:02:03.1]} 17... Nd5 {[%clk
0:02:07.3]} 18. Qc2 {[%clk 0:01:41.4]} 18... Bd7 {[%clk 0:02:06.3]} 19. Bxd7
{[%clk 0:01:32.1]} 19... Qxd7 {[%clk 0:02:05.9]} 20. Ne4 {[%clk 0:01:27.5]}
20... Rfc8 {[%clk 0:01:56.3]} 21. Neg5 {[%clk 0:01:13.2]} 21... Bxg5 {[%clk
0:01:38.4]} 22. Nxg5 {[%clk 0:01:12.2]} 22... Nf6 {[%clk 0:01:36.1]} 23. Rf4
{[%clk 0:00:40.4]} 23... Qd5 {[%clk 0:01:33.5]} 24. h4 {[%clk 0:00:29.9]} 24...
Rxc5 {[%clk 0:01:30.9]} 25. Qb1 {[%clk 0:00:23.3]} 25... h6 {[%clk 0:01:29.3]}
26. Rd1 {[%clk 0:00:23.2]} 26... Qc6 {[%clk 0:01:15.8]} 27. Nf3 {[%clk
0:00:14.7]} 27... Rc8 {[%clk 0:01:10.7]} 28. Rfd4 {[%clk 0:00:13.7]} 28... Qc7
{[%clk 0:01:04.8]} 29. Qd3 {[%clk 0:00:09.1]} 29... Rc3 {[%clk 0:01:01.9]} 30.
Qd2 {[%clk 0:00:08.2]} 30... Rc2 {[%clk 0:01:01.5]} 31. Qe3 {[%clk 0:00:08.2]}
31... Rc1 {[%clk 0:00:55.9]} 32. Ne5 {[%clk 0:00:06.1]} 32... Rxd1+ {[%clk
0:00:53.7]} 33. Rxd1 {[%clk 0:00:07]} 33... Nd5 {[%clk 0:00:52.1]} 34. Qe4
{[%clk 0:00:04.3]} 34... Nc3 {[%clk 0:00:51]} 0-1

[Event "*** SCC Grand Prix: Titled Tuesday Blitz"]
[Site "Chess.com"]
[Date "2020.10.13"]
[Round "8"]
[White "GAusal"]
[Black "orestn"]
[Result "1-0"]
[WhiteElo "2053"]
[BlackElo "2288"]
[TimeControl "180+1"]
[EndTime "11:33:09 PDT"]
[Termination "GAusal won by resignation"]

1. e4 {[%clk 0:03:00.9]} 1... e5 {[%clk 0:02:59.3]} 2. f4 {[%clk 0:03:00.8]}
2... Nc6 {[%clk 0:03:00.2]} 3. Nf3 {[%clk 0:02:59.1]} 3... f5 {[%clk 0:03:00.6]}
4. exf5 {[%clk 0:02:54.3]} 4... e4 {[%clk 0:02:58.9]} 5. Ne5 {[%clk 0:02:51.3]}
5... Nf6 {[%clk 0:02:59.8]} 6. Nc3 {[%clk 0:02:47.4]} 6... d6 {[%clk 0:02:53.1]}
7. Nxc6 {[%clk 0:02:43.7]} 7... bxc6 {[%clk 0:02:54]} 8. g4 {[%clk 0:02:38.9]}
8... h5 {[%clk 0:02:31.4]} 9. g5 {[%clk 0:02:34.3]} 9... Nd5 {[%clk 0:02:31.8]}
10. Nxd5 {[%clk 0:02:30.6]} 10... cxd5 {[%clk 0:02:30.9]} 11. Bh3 {[%clk
0:02:27.6]} 11... g6 {[%clk 0:02:20.8]} 12. d3 {[%clk 0:02:24]} 12... Qe7 {[%clk
0:01:45.8]} 13. f6 {[%clk 0:02:18.1]} 13... Qf7 {[%clk 0:01:36.8]} 14. Bxc8
{[%clk 0:02:17.7]} 14... Rxc8 {[%clk 0:01:36.1]} 15. dxe4 {[%clk 0:02:14.5]}
15... dxe4 {[%clk 0:01:35.9]} 16. Qd4 {[%clk 0:02:10.7]} 16... d5 {[%clk
0:01:31.7]} 17. Be3 {[%clk 0:02:07.3]} 17... c6 {[%clk 0:01:20.1]} 18. Qxa7
{[%clk 0:01:59.3]} 18... Qxa7 {[%clk 0:01:12.1]} 19. Bxa7 {[%clk 0:01:58]} 19...
Bd6 {[%clk 0:01:13]} 20. Be3 {[%clk 0:01:50.3]} 20... Kf7 {[%clk 0:01:08.9]} 21.
c3 {[%clk 0:01:49.8]} 21... Ke6 {[%clk 0:01:04.6]} 22. b4 {[%clk 0:01:46.4]}
22... c5 {[%clk 0:00:56.4]} 23. b5 {[%clk 0:01:43.1]} 23... d4 {[%clk
0:00:43.7]} 24. cxd4 {[%clk 0:01:42.3]} 24... cxd4 {[%clk 0:00:44.2]} 25. Bxd4
{[%clk 0:01:38.8]} 25... Bxf4 {[%clk 0:00:44.6]} 26. h4 {[%clk 0:01:29.7]} 26...
Rc2 {[%clk 0:00:28.9]} 27. a4 {[%clk 0:01:24.8]} 27... Rd8 {[%clk 0:00:21.1]}
28. O-O {[%clk 0:01:16.8]} 28... Bh2+ {[%clk 0:00:17.3]} 29. Kh1 {[%clk
0:01:12.9]} 29... Rxd4 {[%clk 0:00:16.5]} 30. f7 {[%clk 0:01:09]} 30... Bd6
{[%clk 0:00:16.7]} 31. Rf6+ {[%clk 0:01:05.9]} 31... Ke5 {[%clk 0:00:15.7]} 32.
Rxd6 {[%clk 0:01:03.1]} 32... Rf2 {[%clk 0:00:15.2]} 33. Rxd4 {[%clk 0:00:59.5]}
33... Kxd4 {[%clk 0:00:15]} 34. b6 {[%clk 0:00:59.1]} 34... Rxf7 {[%clk
0:00:10.4]} 35. a5 {[%clk 0:00:58.8]} 35... e3 {[%clk 0:00:10]} 36. a6 {[%clk
0:00:58.1]} 36... e2 {[%clk 0:00:09.8]} 37. Kg1 {[%clk 0:00:45.7]} 1-0

[Event "*** SCC Grand Prix: Titled Tuesday Blitz"]
[Site "Chess.com"]
[Date "2020.10.13"]
[Round "8"]
[White "BikingBrian"]
[Black "UmarovSabir"]
[Result "1-0"]
[WhiteElo "2237"]
[BlackElo "2366"]
[TimeControl "180+1"]
[EndTime "11:33:10 PDT"]
[Termination "BikingBrian won on time"]

1. d4 {[%clk 0:03:00.9]} 1... g6 {[%clk 0:02:59.6]} 2. e4 {[%clk 0:02:59.8]}
2... Bg7 {[%clk 0:02:59.6]} 3. Nc3 {[%clk 0:03:00.2]} 3... c6 {[%clk 0:02:59.6]}
4. Be3 {[%clk 0:03:00.4]} 4... d5 {[%clk 0:02:59.9]} 5. Qd2 {[%clk 0:03:00.9]}
5... Nf6 {[%clk 0:02:53.4]} 6. f3 {[%clk 0:02:47.3]} 6... dxe4 {[%clk
0:02:52.7]} 7. Nxe4 {[%clk 0:02:42.5]} 7... O-O {[%clk 0:02:16.6]} 8. O-O-O
{[%clk 0:02:41.8]} 8... Be6 {[%clk 0:02:12.9]} 9. Kb1 {[%clk 0:02:40.8]} 9...
Nbd7 {[%clk 0:01:56.6]} 10. Ng5 {[%clk 0:02:35]} 10... Nd5 {[%clk 0:01:28.4]}
11. Nxe6 {[%clk 0:02:31.5]} 11... fxe6 {[%clk 0:01:29.3]} 12. Bh6 {[%clk
0:02:24.9]} 12... Qb6 {[%clk 0:00:59.3]} 13. Bxg7 {[%clk 0:02:21.9]} 13... Kxg7
{[%clk 0:01:00.2]} 14. Ne2 {[%clk 0:02:12.4]} 14... e5 {[%clk 0:00:51.9]} 15.
Nc3 {[%clk 0:02:07]} 15... exd4 {[%clk 0:00:46.8]} 16. Nxd5 {[%clk 0:02:05]}
16... cxd5 {[%clk 0:00:46.4]} 17. Qxd4+ {[%clk 0:02:05.3]} 17... Qxd4 {[%clk
0:00:46.3]} 18. Rxd4 {[%clk 0:02:06.2]} 18... Nf6 {[%clk 0:00:44.7]} 19. Bb5
{[%clk 0:01:58.8]} 19... Rad8 {[%clk 0:00:38.2]} 20. Re1 {[%clk 0:01:57.3]}
20... Kf7 {[%clk 0:00:37.7]} 21. Ba4 {[%clk 0:01:52.2]} 21... Rd6 {[%clk
0:00:19.6]} 22. Bb3 {[%clk 0:01:45]} 22... e6 {[%clk 0:00:14.2]} 23. c4 {[%clk
0:01:44.4]} 23... Rfd8 {[%clk 0:00:14]} 24. cxd5 {[%clk 0:01:44.4]} 24... Nxd5
{[%clk 0:00:13.1]} 25. Red1 {[%clk 0:01:34.5]} 25... Ke7 {[%clk 0:00:11]} 26.
Bxd5 {[%clk 0:01:33.8]} 26... exd5 {[%clk 0:00:03.8]} 27. Re1+ {[%clk
0:01:27.4]} 27... Re6 {[%clk 0:00:03.9]} 28. Rxe6+ {[%clk 0:01:21.9]} 28... Kxe6
{[%clk 0:00:04.8]} 29. f4 {[%clk 0:01:20.4]} 29... Rd7 {[%clk 0:00:03.8]} 30.
Kc2 {[%clk 0:01:19.5]} 30... h6 {[%clk 0:00:03.5]} 31. Kd3 {[%clk 0:01:18.9]}
31... Rc7 {[%clk 0:00:03.4]} 32. Kd2 {[%clk 0:01:18.4]} 32... Rc6 {[%clk
0:00:02.7]} 33. Rd3 {[%clk 0:01:16.3]} 33... Rb6 {[%clk 0:00:03]} 34. b3 {[%clk
0:01:15.4]} 34... Ra6 {[%clk 0:00:03.4]} 35. a4 {[%clk 0:01:15.7]} 35... Rc6
{[%clk 0:00:03.8]} 36. Rc3 {[%clk 0:01:15.1]} 36... Kd6 {[%clk 0:00:03]} 37.
Rxc6+ {[%clk 0:01:13.5]} 37... bxc6 {[%clk 0:00:03.2]} 38. b4 {[%clk 0:01:11]}
38... c5 {[%clk 0:00:01.4]} 39. bxc5+ {[%clk 0:01:11.3]} 39... Kxc5 {[%clk
0:00:02.3]} 40. Kd3 {[%clk 0:01:10]} 40... Kb4 {[%clk 0:00:02.6]} 41. g4 {[%clk
0:01:10.4]} 41... Kxa4 {[%clk 0:00:02.8]} 42. f5 {[%clk 0:01:10.9]} 42... gxf5
{[%clk 0:00:02.8]} 43. gxf5 {[%clk 0:01:10.8]} 43... Kb5 {[%clk 0:00:03.2]} 44.
f6 {[%clk 0:01:08.5]} 1-0

[Event "*** SCC Grand Prix: Titled Tuesday Blitz"]
[Site "Chess.com"]
[Date "2020.10.13"]
[Round "8"]
[White "ferdipy"]
[Black "PawnEatingZombie"]
[Result "0-1"]
[WhiteElo "2301"]
[BlackElo "2191"]
[TimeControl "180+1"]
[EndTime "11:33:11 PDT"]
[Termination "PawnEatingZombie won by resignation"]

1. e4 {[%clk 0:03:00.9]} 1... c6 {[%clk 0:02:59.2]} 2. d4 {[%clk 0:03:00.9]}
2... d5 {[%clk 0:02:59]} 3. exd5 {[%clk 0:03:01.7]} 3... cxd5 {[%clk 0:02:59]}
4. Bd3 {[%clk 0:03:01.7]} 4... Nc6 {[%clk 0:02:59]} 5. c3 {[%clk 0:03:01.8]}
5... Qc7 {[%clk 0:02:59.5]} 6. h3 {[%clk 0:02:58.2]} 6... Nf6 {[%clk 0:02:58.8]}
7. Nf3 {[%clk 0:02:58.7]} 7... g6 {[%clk 0:02:59.2]} 8. O-O {[%clk 0:02:57.9]}
8... Bf5 {[%clk 0:02:59.5]} 9. Bg5 {[%clk 0:02:56.5]} 9... Bg7 {[%clk
0:02:55.7]} 10. Re1 {[%clk 0:02:56.2]} 10... Bxd3 {[%clk 0:02:50.3]} 11. Qxd3
{[%clk 0:02:55.3]} 11... O-O {[%clk 0:02:50.8]} 12. Nbd2 {[%clk 0:02:54.7]}
12... Rfe8 {[%clk 0:02:48.4]} 13. Bh4 {[%clk 0:02:50.4]} 13... a6 {[%clk
0:02:38.9]} 14. Bg3 {[%clk 0:02:50.1]} 14... Qb6 {[%clk 0:02:34.2]} 15. b4
{[%clk 0:02:45.9]} 15... Rac8 {[%clk 0:02:24.6]} 16. Nb3 {[%clk 0:02:44.6]}
16... Qa7 {[%clk 0:02:19.3]} 17. a4 {[%clk 0:02:43.4]} 17... Ne4 {[%clk
0:02:07.7]} 18. Nc5 {[%clk 0:02:34.7]} 18... Nxg3 {[%clk 0:02:00.8]} 19. fxg3
{[%clk 0:02:33.1]} 19... a5 {[%clk 0:02:00.8]} 20. b5 {[%clk 0:02:32.6]} 20...
Nb8 {[%clk 0:01:58.9]} 21. Rab1 {[%clk 0:02:27.5]} 21... b6 {[%clk 0:01:58.8]}
22. Nb3 {[%clk 0:02:27.3]} 22... Qc7 {[%clk 0:01:57.4]} 23. Rec1 {[%clk
0:02:26.6]} 23... Nd7 {[%clk 0:01:56.2]} 24. Nbd2 {[%clk 0:02:26.6]} 24... Qd6
{[%clk 0:01:49.1]} 25. c4 {[%clk 0:02:24.4]} 25... dxc4 {[%clk 0:01:40.9]} 26.
Nxc4 {[%clk 0:02:23.4]} 26... Qxg3 {[%clk 0:01:35.5]} 27. Rc2 {[%clk 0:02:20.6]}
27... Red8 {[%clk 0:01:29.8]} 28. Rd1 {[%clk 0:02:18.6]} 28... h6 {[%clk
0:01:13.9]} 29. Ne3 {[%clk 0:02:16.2]} 29... Nc5 {[%clk 0:00:58]} 30. Qe2 {[%clk
0:02:12.9]} 30... Nxa4 {[%clk 0:00:56.1]} 31. Rxc8 {[%clk 0:02:11.8]} 31... Rxc8
{[%clk 0:00:55.7]} 32. Qa2 {[%clk 0:02:10.5]} 32... Nc3 {[%clk 0:00:48.8]} 33.
Qc2 {[%clk 0:02:08.6]} 33... Qc7 {[%clk 0:00:37.9]} 34. Rd3 {[%clk 0:02:03.6]}
34... Nxb5 {[%clk 0:00:36.9]} 35. Qa4 {[%clk 0:01:59.2]} 35... Nd6 {[%clk
0:00:31]} 36. Nd5 {[%clk 0:01:57.2]} 36... Qc1+ {[%clk 0:00:30.7]} 37. Rd1
{[%clk 0:01:54.4]} 37... Qc2 {[%clk 0:00:24.3]} 38. Nxe7+ {[%clk 0:01:53.3]}
38... Kh7 {[%clk 0:00:22.4]} 39. Qxc2 {[%clk 0:01:52.2]} 39... Rxc2 {[%clk
0:00:22.3]} 40. Nd5 {[%clk 0:01:51.9]} 40... b5 {[%clk 0:00:21.1]} 41. Ne3
{[%clk 0:01:49.2]} 41... Ra2 {[%clk 0:00:19.5]} 42. Rb1 {[%clk 0:01:47.2]} 42...
b4 {[%clk 0:00:19.5]} 43. Nd5 {[%clk 0:01:43]} 43... Nb5 {[%clk 0:00:18.7]} 44.
Nb6 {[%clk 0:01:38.9]} 44... Nxd4 {[%clk 0:00:17.9]} 45. Ne1 {[%clk 0:01:34.9]}
45... b3 {[%clk 0:00:16.3]} 46. Nd3 {[%clk 0:01:33.8]} 46... a4 {[%clk
0:00:15.1]} 47. Nc4 {[%clk 0:01:30.9]} 47... Ne2+ {[%clk 0:00:14.6]} 48. Kf1
{[%clk 0:01:30]} 48... Nc3 {[%clk 0:00:15.5]} 49. Rb2 {[%clk 0:01:25.7]} 49...
Rxb2 {[%clk 0:00:15.2]} 50. Ncxb2 {[%clk 0:01:25]} 50... a3 {[%clk 0:00:16.1]}
51. Nc4 {[%clk 0:01:24.4]} 51... b2 {[%clk 0:00:16.3]} 52. Ncxb2 {[%clk
0:01:24]} 52... a2 {[%clk 0:00:16.6]} 53. Kf2 {[%clk 0:01:22.1]} 53... a1=Q
{[%clk 0:00:16.7]} 54. Nc4 {[%clk 0:01:22]} 54... Qa2+ {[%clk 0:00:15]} 55. Kg3
{[%clk 0:01:21.1]} 55... Qxc4 {[%clk 0:00:15]} 0-1

[Event "*** SCC Grand Prix: Titled Tuesday Blitz"]
[Site "Chess.com"]
[Date "2020.10.13"]
[Round "8"]
[White "ViditYT"]
[Black "ChessWarrior7197"]
[Result "1-0"]
[WhiteElo "2873"]
[BlackElo "3021"]
[TimeControl "180+1"]
[EndTime "11:33:16 PDT"]
[Termination "ViditYT won by resignation"]

1. d4 {[%clk 0:03:00.9]} 1... d5 {[%clk 0:03:00.5]} 2. c4 {[%clk 0:03:00.9]}
2... e6 {[%clk 0:03:00.7]} 3. Nf3 {[%clk 0:03:00.9]} 3... c5 {[%clk 0:03:01.3]}
4. cxd5 {[%clk 0:03:00.9]} 4... exd5 {[%clk 0:03:01.8]} 5. Nc3 {[%clk
0:02:51.6]} 5... Nc6 {[%clk 0:03:02.1]} 6. e3 {[%clk 0:02:46.6]} 6... c4 {[%clk
0:03:00.7]} 7. b3 {[%clk 0:02:41.3]} 7... cxb3 {[%clk 0:02:49.6]} 8. Qxb3 {[%clk
0:02:41.2]} 8... Nf6 {[%clk 0:02:50.5]} 9. Bb5 {[%clk 0:02:29.6]} 9... Bd6
{[%clk 0:02:48.2]} 10. Ba3 {[%clk 0:02:27.3]} 10... O-O {[%clk 0:02:47.2]} 11.
Bxd6 {[%clk 0:02:25.8]} 11... Qxd6 {[%clk 0:02:48.1]} 12. h3 {[%clk 0:02:21.5]}
12... Bd7 {[%clk 0:02:46.6]} 13. O-O {[%clk 0:02:19.8]} 13... Rfc8 {[%clk
0:02:46.3]} 14. Rfc1 {[%clk 0:02:18.4]} 14... Rc7 {[%clk 0:02:34.1]} 15. Be2
{[%clk 0:01:43.5]} 15... Rac8 {[%clk 0:02:17.3]} 16. Nb5 {[%clk 0:01:19.8]}
16... Nxd4 {[%clk 0:02:00]} 17. Rxc7 {[%clk 0:01:09.8]} 17... Nxe2+ {[%clk
0:01:37.3]} 18. Kf1 {[%clk 0:00:46.6]} 18... Ng3+ {[%clk 0:01:19.3]} 19. Ke1
{[%clk 0:00:46.3]} 19... Qb6 {[%clk 0:01:10.9]} 20. Rxc8+ {[%clk 0:00:46.2]}
20... Bxc8 {[%clk 0:01:11.8]} 21. fxg3 {[%clk 0:00:45.4]} 21... Ne4 {[%clk
0:01:12.4]} 22. Rc1 {[%clk 0:00:42.3]} 22... Bd7 {[%clk 0:01:11.4]} 23. Nbd4
{[%clk 0:00:39.5]} 23... Qa5+ {[%clk 0:01:00.3]} 24. Kf1 {[%clk 0:00:34.3]}
24... h6 {[%clk 0:00:55.2]} 25. Kg1 {[%clk 0:00:31.7]} 25... b5 {[%clk
0:00:46.6]} 26. Qxd5 {[%clk 0:00:27.1]} 26... Nf6 {[%clk 0:00:47.2]} 27. Qb3
{[%clk 0:00:25.1]} 27... Qb6 {[%clk 0:00:45.7]} 28. Ne5 {[%clk 0:00:25.1]} 28...
Be8 {[%clk 0:00:45.2]} 29. Rc8 {[%clk 0:00:25.1]} 29... Kh7 {[%clk 0:00:45.7]}
30. Rxe8 {[%clk 0:00:21.5]} 30... Nxe8 {[%clk 0:00:46.6]} 31. Qxf7 {[%clk
0:00:21.5]} 31... Nd6 {[%clk 0:00:45.9]} 32. Qg6+ {[%clk 0:00:20.7]} 32... Kg8
{[%clk 0:00:46.4]} 33. Qe6+ {[%clk 0:00:20.5]} 33... Kh8 {[%clk 0:00:45.8]} 34.
Qxd6 {[%clk 0:00:19.5]} 34... Qa5 {[%clk 0:00:40.9]} 35. Kh2 {[%clk 0:00:16.9]}
35... Kh7 {[%clk 0:00:41.8]} 36. Qg6+ {[%clk 0:00:17]} 36... Kg8 {[%clk
0:00:41.3]} 37. Nf5 {[%clk 0:00:16.9]} 37... Qc7 {[%clk 0:00:42.2]} 38. Nxh6+
{[%clk 0:00:17]} 38... Kf8 {[%clk 0:00:42.2]} 39. Qf5+ {[%clk 0:00:16.4]} 39...
Ke7 {[%clk 0:00:43.1]} 40. Qf7+ {[%clk 0:00:16.3]} 40... Kd6 {[%clk 0:00:44]}
41. Nf5+ {[%clk 0:00:16.2]} 1-0

[Event "*** SCC Grand Prix: Titled Tuesday Blitz"]
[Site "Chess.com"]
[Date "2020.10.13"]
[Round "8"]
[White "AliKa2810"]
[Black "youngKID"]
[Result "0-1"]
[WhiteElo "2607"]
[BlackElo "2818"]
[TimeControl "180+1"]
[EndTime "11:33:21 PDT"]
[Termination "youngKID won by resignation"]

1. d4 {[%clk 0:03:00.9]} 1... Nf6 {[%clk 0:02:58.9]} 2. c4 {[%clk 0:03:01.1]}
2... Nc6 {[%clk 0:02:58.4]} 3. Nf3 {[%clk 0:02:59]} 3... e6 {[%clk 0:02:58.4]}
4. a3 {[%clk 0:02:59.3]} 4... d6 {[%clk 0:02:57]} 5. Nc3 {[%clk 0:02:59.1]} 5...
g6 {[%clk 0:02:57.5]} 6. e4 {[%clk 0:02:53.6]} 6... Bg7 {[%clk 0:02:57.4]} 7.
Be2 {[%clk 0:02:53.4]} 7... a5 {[%clk 0:02:57.2]} 8. h3 {[%clk 0:02:51.2]} 8...
O-O {[%clk 0:02:57.5]} 9. Be3 {[%clk 0:02:50.4]} 9... Re8 {[%clk 0:02:54.6]} 10.
O-O {[%clk 0:02:44]} 10... e5 {[%clk 0:02:53.5]} 11. d5 {[%clk 0:02:43.4]} 11...
Nd4 {[%clk 0:02:53.8]} 12. Nxd4 {[%clk 0:02:40.5]} 12... exd4 {[%clk 0:02:53.3]}
13. Bxd4 {[%clk 0:02:41.2]} 13... Nxe4 {[%clk 0:02:54]} 14. Bxg7 {[%clk
0:02:36.3]} 14... Kxg7 {[%clk 0:02:54.9]} 15. Nxe4 {[%clk 0:02:35.4]} 15... Rxe4
{[%clk 0:02:54.4]} 16. Bd3 {[%clk 0:02:35.9]} 16... Re8 {[%clk 0:02:50.7]} 17.
Re1 {[%clk 0:02:25.2]} 17... Rxe1+ {[%clk 0:02:50]} 18. Qxe1 {[%clk 0:02:24.5]}
18... Qf6 {[%clk 0:02:50.9]} 19. Qe2 {[%clk 0:02:22.9]} 19... Bd7 {[%clk
0:02:48.9]} 20. Qd2 {[%clk 0:02:11.2]} 20... a4 {[%clk 0:02:32.8]} 21. Re1
{[%clk 0:02:09.7]} 21... h5 {[%clk 0:02:21.6]} 22. Re2 {[%clk 0:02:02.6]} 22...
h4 {[%clk 0:02:11.5]} 23. Qe1 {[%clk 0:02:02.2]} 23... b6 {[%clk 0:02:10.3]} 24.
Re7 {[%clk 0:01:59.3]} 24... Rd8 {[%clk 0:02:09.8]} 25. Qe2 {[%clk 0:01:49.5]}
25... Kf8 {[%clk 0:02:08.3]} 26. Re3 {[%clk 0:01:47.5]} 26... Re8 {[%clk
0:01:45.3]} 27. Rxe8+ {[%clk 0:01:46.5]} 27... Bxe8 {[%clk 0:01:46.2]} 28. Kh2
{[%clk 0:01:26.8]} 28... Qe5+ {[%clk 0:01:41.6]} 29. Qxe5 {[%clk 0:01:23.6]}
29... dxe5 {[%clk 0:01:42.5]} 30. g3 {[%clk 0:01:21.4]} 30... hxg3+ {[%clk
0:01:32.7]} 31. Kxg3 {[%clk 0:01:18.7]} 31... Ke7 {[%clk 0:01:31.9]} 32. h4
{[%clk 0:01:07.8]} 32... Kd6 {[%clk 0:01:30.8]} 33. Kf3 {[%clk 0:01:08.1]} 33...
f5 {[%clk 0:01:26.4]} 34. Ke3 {[%clk 0:01:07.1]} 34... e4 {[%clk 0:01:20.4]} 35.
Be2 {[%clk 0:01:02.3]} 35... Ke5 {[%clk 0:01:20.7]} 36. f4+ {[%clk 0:00:57.8]}
36... exf3 {[%clk 0:01:21.1]} 37. Bxf3 {[%clk 0:00:58.5]} 37... f4+ {[%clk
0:01:15.3]} 38. Kd3 {[%clk 0:00:54.3]} 38... Bd7 {[%clk 0:01:15.3]} 39. c5
{[%clk 0:00:45]} 39... Bb5+ {[%clk 0:01:11.4]} 40. Kc3 {[%clk 0:00:42.8]} 40...
bxc5 {[%clk 0:01:12.3]} 41. b3 {[%clk 0:00:37.9]} 41... axb3 {[%clk 0:01:08.7]}
42. Kxb3 {[%clk 0:00:38]} 42... Kd4 {[%clk 0:01:09.3]} 43. a4 {[%clk 0:00:36.8]}
43... c4+ {[%clk 0:01:09.5]} 44. Ka3 {[%clk 0:00:26.9]} 44... Ba6 {[%clk
0:01:08.1]} 45. a5 {[%clk 0:00:22.5]} 45... c3 {[%clk 0:01:07.4]} 46. Kb3 {[%clk
0:00:22.2]} 46... Kd3 {[%clk 0:01:06.3]} 47. h5 {[%clk 0:00:22.2]} 47... gxh5
{[%clk 0:01:05.8]} 48. Bxh5 {[%clk 0:00:22]} 48... Kd2 {[%clk 0:01:05.9]} 0-1